[Event "Titled Tuesday Blitz August 08 Late 2023"]
[White "Soderstrom, Adrian"]
[Black "Paravyan, David"]
[WhiteFideId "1745786"]
[BlackFideId "4194985"]
[WhiteElo "2505"]
[BlackElo "3033"]
[Result "0-1"]
[Round "1"]
[TimeControl "180+1"]
[Date "2023.08.08"]
[WhiteClock "0:01:51"]
[BlackClock "0:02:43"]
[Board "7"]

1. d4 {[%clk 0:03:00]}  d5 {[%clk 0:02:59]} 2. c4 {[%clk 0:03:00]}  e6 {[%clk 0:02:59]} 3. Nf3 {[%clk 0:03:00]}  Nf6 {[%clk 0:03:00]} 4. Nc3 {[%clk 0:03:01]}  c5 {[%clk 0:03:00]} 5. cxd5 {[%clk 0:03:00]}  Nxd5 {[%clk 0:03:01]} 6. e4 {[%clk 0:03:01]}  Nxc3 {[%clk 0:03:01]} 7. bxc3 {[%clk 0:03:02]}  cxd4 {[%clk 0:03:02]} 8. cxd4 {[%clk 0:03:02]}  Bb4+ {[%clk 0:03:03]} 9. Bd2 {[%clk 0:03:03]}  Bxd2+ {[%clk 0:03:03]} 10. Qxd2 {[%clk 0:03:04]}  O-O {[%clk 0:03:04]} 11. Bb5 {[%clk 0:03:00]}  Bd7 {[%clk 0:03:03]} 12. Bxd7 {[%clk 0:02:55]}  Nxd7 {[%clk 0:03:04]} 13. O-O {[%clk 0:02:55]}  Rc8 {[%clk 0:03:03]} 14. Rfc1 {[%clk 0:02:53]}  Qe7 {[%clk 0:03:01]} 15. Rxc8 {[%clk 0:02:52]}  Rxc8 {[%clk 0:03:01]} 16. Rc1 {[%clk 0:02:53]}  Rxc1+ {[%clk 0:02:54]} 17. Qxc1 {[%clk 0:02:54]}  Nb6 {[%clk 0:02:55]} 18. Ne5 {[%clk 0:02:39]}  f6 {[%clk 0:02:53]} 19. Nd3 {[%clk 0:02:39]}  Qd7 {[%clk 0:02:47]} 20. Qc3 {[%clk 0:02:07]}  Qa4 {[%clk 0:02:47]} 21. Qb3 {[%clk 0:02:00]}  Qxd4 {[%clk 0:02:43]} 22. Qxe6+ {[%clk 0:01:59]}  Kf8 {[%clk 0:02:44]} 23. Qb3 {[%clk 0:01:51]}  Qa1+ {[%clk 0:02:43]} 0-1


[Site "https://www.chess.com"]

[Event "Titled Tuesday Blitz August 08 Late 2023"]
[White "Xiong, Jeffery"]
[Black "Koc, Przemyslaw"]
[WhiteFideId "2047640"]
[BlackFideId "1109081"]
[WhiteElo "2972"]
[BlackElo "2501"]
[Result "1-0"]
[Round "1"]
[TimeControl "180+1"]
[Date "2023.08.08"]
[WhiteClock "0:01:28"]
[BlackClock "0:01:22"]
[Board "12"]

1. e4 {[%clk 0:03:00]}  d6 {[%clk 0:02:59]} 2. d4 {[%clk 0:03:00]}  Nf6 {[%clk 0:02:59]} 3. Nc3 {[%clk 0:03:01]}  e5 {[%clk 0:03:00]} 4. Nf3 {[%clk 0:03:02]}  Nbd7 {[%clk 0:02:59]} 5. Bc4 {[%clk 0:03:02]}  c6 {[%clk 0:03:00]} 6. a4 {[%clk 0:03:02]}  a5 {[%clk 0:02:59]} 7. O-O {[%clk 0:03:03]}  Be7 {[%clk 0:03:00]} 8. Re1 {[%clk 0:03:03]}  h6 {[%clk 0:02:58]} 9. h3 {[%clk 0:03:01]}  Qc7 {[%clk 0:02:54]} 10. Be3 {[%clk 0:02:48]}  Nf8 {[%clk 0:02:54]} 11. Qd2 {[%clk 0:02:23]}  g5 {[%clk 0:02:51]} 12. d5 {[%clk 0:02:06]}  Ng6 {[%clk 0:02:49]} 13. Rad1 {[%clk 0:02:03]}  Nf4 {[%clk 0:02:38]} 14. Nh2 {[%clk 0:01:59]}  Rg8 {[%clk 0:02:10]} 15. Kh1 {[%clk 0:01:53]}  h5 {[%clk 0:02:06]} 16. h4 {[%clk 0:01:51]}  Ng4 {[%clk 0:01:56]} 17. Nf3 {[%clk 0:01:34]}  f6 {[%clk 0:01:44]} 18. dxc6 {[%clk 0:01:29]}  Rg7 {[%clk 0:01:27]} 19. Bxf4 {[%clk 0:01:29]}  gxf4 {[%clk 0:01:25]} 20. Nd5 {[%clk 0:01:28]}  Qxc6 {[%clk 0:01:22]} 21. Bb5 {[%clk 0:01:28]} 1-0


[Site "https://www.chess.com"]

[Event "Titled Tuesday Blitz August 08 Late 2023"]
[White "Liu, Casper"]
[Black "Sjugirov, Sanan"]
[WhiteFideId "1454153"]
[BlackFideId "4189302"]
[WhiteElo "2501"]
[BlackElo "2957"]
[Result "0-1"]
[Round "1"]
[TimeControl "180+1"]
[Date "2023.08.08"]
[WhiteClock "0:00:33"]
[BlackClock "0:02:09"]
[Board "13"]

1. d4 {[%clk 0:02:59]}  Nf6 {[%clk 0:02:58]} 2. Nf3 {[%clk 0:02:59]}  b6 {[%clk 0:02:57]} 3. Bf4 {[%clk 0:02:59]}  Bb7 {[%clk 0:02:57]} 4. e3 {[%clk 0:02:59]}  g6 {[%clk 0:02:58]} 5. Nbd2 {[%clk 0:02:59]}  Bg7 {[%clk 0:02:58]} 6. h4 {[%clk 0:02:59]}  d6 {[%clk 0:02:57]} 7. c3 {[%clk 0:02:57]}  Nbd7 {[%clk 0:02:57]} 8. Bd3 {[%clk 0:02:56]}  e6 {[%clk 0:02:56]} 9. Qc2 {[%clk 0:02:25]}  Qe7 {[%clk 0:02:55]} 10. Bg5 {[%clk 0:02:13]}  h6 {[%clk 0:02:55]} 11. Bf4 {[%clk 0:02:13]}  e5 {[%clk 0:02:52]} 12. Bxg6 {[%clk 0:01:47]}  exf4 {[%clk 0:02:43]} 13. Bf5 {[%clk 0:01:40]}  fxe3 {[%clk 0:02:41]} 14. fxe3 {[%clk 0:01:41]}  Qxe3+ {[%clk 0:02:36]} 15. Kd1 {[%clk 0:01:35]}  O-O-O {[%clk 0:02:36]} 16. Re1 {[%clk 0:01:33]}  Qf4 {[%clk 0:02:34]} 17. Re7 {[%clk 0:01:25]}  Nd5 {[%clk 0:02:25]} 18. Qe4 {[%clk 0:01:13]}  Nxc3+ {[%clk 0:02:21]} 19. bxc3 {[%clk 0:01:06]}  Bxe4 {[%clk 0:02:22]} 20. Bxe4 {[%clk 0:01:06]}  Rde8 {[%clk 0:02:18]} 21. g3 {[%clk 0:00:56]}  Qxg3 {[%clk 0:02:14]} 22. Rxf7 {[%clk 0:00:57]}  Rhf8 {[%clk 0:02:13]} 23. Rxf8 {[%clk 0:00:44]}  Bxf8 {[%clk 0:02:12]} 24. Ke2 {[%clk 0:00:40]}  d5 {[%clk 0:02:10]} 25. Rg1 {[%clk 0:00:33]}  Qd6 {[%clk 0:02:09]} 0-1


[Site "https://www.chess.com"]

[Event "Titled Tuesday Blitz August 08 Late 2023"]
[White "He, Anthony"]
[Black "Ibadov, Dashgyn"]
[WhiteFideId "2088215"]
[BlackFideId "24107514"]
[WhiteElo "2952"]
[BlackElo "2501"]
[Result "1-0"]
[Round "1"]
[TimeControl "180+1"]
[Date "2023.08.08"]
[WhiteClock "0:02:10"]
[BlackClock "0:00:21"]
[Board "14"]

1. d4 {[%clk 0:02:59]}  Nf6 {[%clk 0:03:00]} 2. Nc3 {[%clk 0:02:58]}  d5 {[%clk 0:02:59]} 3. Bf4 {[%clk 0:02:56]}  a6 {[%clk 0:02:59]} 4. e3 {[%clk 0:02:54]}  e6 {[%clk 0:02:59]} 5. g4 {[%clk 0:02:53]}  c5 {[%clk 0:03:00]} 6. g5 {[%clk 0:02:53]}  Ne4 {[%clk 0:02:56]} 7. Nxe4 {[%clk 0:02:53]}  dxe4 {[%clk 0:02:57]} 8. Bg2 {[%clk 0:02:51]}  cxd4 {[%clk 0:02:47]} 9. exd4 {[%clk 0:02:50]}  Nc6 {[%clk 0:02:45]} 10. c3 {[%clk 0:02:48]}  Qd5 {[%clk 0:02:44]} 11. Qe2 {[%clk 0:02:44]}  Be7 {[%clk 0:02:27]} 12. Bxe4 {[%clk 0:02:42]}  Qd8 {[%clk 0:02:28]} 13. Nf3 {[%clk 0:02:42]}  O-O {[%clk 0:02:27]} 14. h4 {[%clk 0:02:42]}  Bd6 {[%clk 0:02:21]} 15. Qe3 {[%clk 0:02:37]}  Ne7 {[%clk 0:02:06]} 16. c4 {[%clk 0:02:23]}  Qa5+ {[%clk 0:01:47]} 17. Kf1 {[%clk 0:02:20]}  Bxf4 {[%clk 0:01:47]} 18. Qxf4 {[%clk 0:02:21]}  Bd7 {[%clk 0:01:34]} 19. h5 {[%clk 0:02:18]}  Rac8 {[%clk 0:01:23]} 20. h6 {[%clk 0:02:16]}  Ng6 {[%clk 0:00:21]} 21. Qh2 {[%clk 0:02:10]} 1-0


[Site "https://www.chess.com"]

[Event "Titled Tuesday Blitz August 08 Late 2023"]
[White "Yu, Jennifer"]
[Black "Iturrizaga Bonelli, Eduardo"]
[WhiteFideId "2078341"]
[BlackFideId "3901211"]
[WhiteElo "2500"]
[BlackElo "2949"]
[Result "0-1"]
[Round "1"]
[TimeControl "180+1"]
[Date "2023.08.08"]
[WhiteClock "0:00:23"]
[BlackClock "0:01:54"]
[Board "15"]

1. c4 {[%clk 0:03:00]}  Nf6 {[%clk 0:02:59]} 2. Nc3 {[%clk 0:03:00]}  e6 {[%clk 0:02:59]} 3. Nf3 {[%clk 0:03:00]}  c5 {[%clk 0:02:59]} 4. g3 {[%clk 0:03:00]}  b6 {[%clk 0:02:59]} 5. Bg2 {[%clk 0:03:00]}  Bb7 {[%clk 0:03:00]} 6. O-O {[%clk 0:03:01]}  Be7 {[%clk 0:03:00]} 7. d3 {[%clk 0:03:00]}  O-O {[%clk 0:03:00]} 8. e4 {[%clk 0:03:00]}  Nc6 {[%clk 0:03:00]} 9. Re1 {[%clk 0:02:59]}  a6 {[%clk 0:03:00]} 10. h3 {[%clk 0:02:59]}  Qc7 {[%clk 0:02:59]} 11. Bf4 {[%clk 0:02:58]}  d6 {[%clk 0:02:59]} 12. e5 {[%clk 0:02:56]}  dxe5 {[%clk 0:02:58]} 13. Nxe5 {[%clk 0:02:56]}  Bd6 {[%clk 0:02:58]} 14. Nxc6 {[%clk 0:02:21]}  Bxf4 {[%clk 0:02:57]} 15. gxf4 {[%clk 0:02:17]}  Bxc6 {[%clk 0:02:56]} 16. Bxc6 {[%clk 0:02:15]}  Qxc6 {[%clk 0:02:57]} 17. Ne4 {[%clk 0:02:15]}  Nxe4 {[%clk 0:02:49]} 18. dxe4 {[%clk 0:02:15]}  Rad8 {[%clk 0:02:50]} 19. Qg4 {[%clk 0:02:14]}  Rd4 {[%clk 0:02:49]} 20. Qe2 {[%clk 0:01:46]}  Rfd8 {[%clk 0:02:39]} 21. Rad1 {[%clk 0:01:45]}  h6 {[%clk 0:02:36]} 22. f3 {[%clk 0:01:40]}  Qc7 {[%clk 0:02:27]} 23. Rxd4 {[%clk 0:01:11]}  Rxd4 {[%clk 0:02:28]} 24. Qe3 {[%clk 0:01:12]}  Rxc4 {[%clk 0:02:28]} 25. Rd1 {[%clk 0:01:12]}  g5 {[%clk 0:02:13]} 26. Qe2 {[%clk 0:00:46]}  Rd4 {[%clk 0:02:08]} 27. Rxd4 {[%clk 0:00:45]}  cxd4 {[%clk 0:02:09]} 28. Qxa6 {[%clk 0:00:35]}  Qc1+ {[%clk 0:01:59]} 29. Kg2 {[%clk 0:00:35]}  Qd2+ {[%clk 0:01:58]} 30. Kg1 {[%clk 0:00:33]}  Qc1+ {[%clk 0:01:51]} 31. Kg2 {[%clk 0:00:32]}  Qxb2+ {[%clk 0:01:52]} 32. Kg3 {[%clk 0:00:32]}  gxf4+ {[%clk 0:01:52]} 33. Kxf4 {[%clk 0:00:32]}  Qh2+ {[%clk 0:01:53]} 34. Kg4 {[%clk 0:00:23]}  Qg2+ {[%clk 0:01:54]} 0-1


[Site "https://www.chess.com"]

[Event "Titled Tuesday Blitz August 08 Late 2023"]
[White "Nguyen, Ngoc Truong Son"]
[Black "Michalczak, Thomas"]
[WhiteFideId "12401110"]
[BlackFideId "4622634"]
[WhiteElo "2947"]
[BlackElo "2499"]
[Result "1-0"]
[Round "1"]
[TimeControl "180+1"]
[Date "2023.08.08"]
[WhiteClock "0:00:53"]
[BlackClock "0:00:04"]
[Board "16"]

1. d4 {[%clk 0:03:00]}  Nf6 {[%clk 0:02:59]} 2. c4 {[%clk 0:03:01]}  e6 {[%clk 0:02:59]} 3. Nc3 {[%clk 0:03:00]}  d5 {[%clk 0:02:59]} 4. Nf3 {[%clk 0:03:00]}  Nbd7 {[%clk 0:02:59]} 5. cxd5 {[%clk 0:02:57]}  exd5 {[%clk 0:02:58]} 6. Bf4 {[%clk 0:02:57]}  c6 {[%clk 0:02:58]} 7. e3 {[%clk 0:02:58]}  Be7 {[%clk 0:02:58]} 8. Bd3 {[%clk 0:02:57]}  Nh5 {[%clk 0:02:49]} 9. Qc2 {[%clk 0:02:57]}  Nxf4 {[%clk 0:02:47]} 10. exf4 {[%clk 0:02:58]}  Nf6 {[%clk 0:02:46]} 11. O-O {[%clk 0:02:56]}  O-O {[%clk 0:02:46]} 12. Rfe1 {[%clk 0:02:56]}  Bd6 {[%clk 0:02:39]} 13. g3 {[%clk 0:02:55]}  h6 {[%clk 0:02:22]} 14. Ne5 {[%clk 0:02:54]}  Re8 {[%clk 0:02:19]} 15. Re2 {[%clk 0:02:54]}  Bg4 {[%clk 0:02:13]} 16. Re3 {[%clk 0:02:54]}  Qb6 {[%clk 0:02:02]} 17. Rae1 {[%clk 0:02:53]}  Bh3 {[%clk 0:01:44]} 18. Qd2 {[%clk 0:02:49]}  Kf8 {[%clk 0:01:38]} 19. Bb1 {[%clk 0:02:48]}  Rad8 {[%clk 0:01:25]} 20. a3 {[%clk 0:02:47]}  a5 {[%clk 0:01:25]} 21. Na4 {[%clk 0:02:18]}  Qc7 {[%clk 0:01:23]} 22. Nc5 {[%clk 0:02:14]}  Bc8 {[%clk 0:01:12]} 23. b4 {[%clk 0:02:13]}  axb4 {[%clk 0:01:10]} 24. axb4 {[%clk 0:02:13]}  b6 {[%clk 0:01:11]} 25. Na4 {[%clk 0:02:13]}  c5 {[%clk 0:01:02]} 26. bxc5 {[%clk 0:02:11]}  bxc5 {[%clk 0:01:03]} 27. dxc5 {[%clk 0:02:10]}  Bxc5 {[%clk 0:00:56]} 28. Rc3 {[%clk 0:02:09]}  Bb4 {[%clk 0:00:57]} 29. Rxc7 {[%clk 0:02:09]}  Bxd2 {[%clk 0:00:57]} 30. Rd1 {[%clk 0:02:08]}  Ba5 {[%clk 0:00:40]} 31. Rxf7+ {[%clk 0:02:08]}  Kg8 {[%clk 0:00:41]} 32. Ra7 {[%clk 0:02:06]}  Bb4 {[%clk 0:00:40]} 33. Bg6 {[%clk 0:02:05]}  Rf8 {[%clk 0:00:35]} 34. Nc6 {[%clk 0:01:58]}  Rd7 {[%clk 0:00:29]} 35. Ra8 {[%clk 0:01:47]}  Bd6 {[%clk 0:00:25]} 36. Nb6 {[%clk 0:01:41]}  Rc7 {[%clk 0:00:20]} 37. Rxc8 {[%clk 0:01:26]}  Rfxc8 {[%clk 0:00:18]} 38. Nxc8 {[%clk 0:01:27]}  Rxc8 {[%clk 0:00:14]} 39. Nd4 {[%clk 0:01:25]}  Ba3 {[%clk 0:00:13]} 40. Kg2 {[%clk 0:01:22]}  Rc1 {[%clk 0:00:13]} 41. Rd3 {[%clk 0:01:21]}  Bc5 {[%clk 0:00:14]} 42. Nb3 {[%clk 0:01:19]}  Rc4 {[%clk 0:00:11]} 43. Nxc5 {[%clk 0:00:54]}  Rxc5 {[%clk 0:00:12]} 44. Ra3 {[%clk 0:00:54]}  Kf8 {[%clk 0:00:12]} 45. Ra8+ {[%clk 0:00:53]}  Ke7 {[%clk 0:00:12]} 46. Ra7+ {[%clk 0:00:53]}  Nd7 {[%clk 0:00:04]} 47. Bf5 {[%clk 0:00:53]} 1-0


[Site "https://www.chess.com"]

[Event "Titled Tuesday Blitz August 08 Late 2023"]
[White "chess123456s"]
[Black "Tari, Aryan"]
[BlackFideId "1510045"]
[WhiteElo "2494"]
[BlackElo "2919"]
[Result "0-1"]
[Round "1"]
[TimeControl "180+1"]
[Date "2023.08.08"]
[WhiteClock "0:00:06"]
[BlackClock "0:00:40"]
[Board "21"]

1. d4 {[%clk 0:02:58]}  Nf6 {[%clk 0:02:57]} 2. Nc3 {[%clk 0:02:58]}  d5 {[%clk 0:02:52]} 3. Bf4 {[%clk 0:02:57]}  c5 {[%clk 0:02:48]} 4. e4 {[%clk 0:02:57]}  Nxe4 {[%clk 0:02:48]} 5. Nxe4 {[%clk 0:02:56]}  dxe4 {[%clk 0:02:49]} 6. dxc5 {[%clk 0:02:57]}  Qa5+ {[%clk 0:02:48]} 7. c3 {[%clk 0:02:57]}  Qxc5 {[%clk 0:02:49]} 8. Qa4+ {[%clk 0:02:58]}  Nc6 {[%clk 0:02:48]} 9. Qxe4 {[%clk 0:02:58]}  g6 {[%clk 0:02:45]} 10. Nf3 {[%clk 0:02:58]}  Bg7 {[%clk 0:02:45]} 11. Rd1 {[%clk 0:02:58]}  O-O {[%clk 0:02:44]} 12. Be3 {[%clk 0:02:49]}  Qa5 {[%clk 0:02:42]} 13. Bc4 {[%clk 0:02:49]}  Bf5 {[%clk 0:02:35]} 14. Qh4 {[%clk 0:02:49]}  Bf6 {[%clk 0:02:25]} 15. Ng5 {[%clk 0:02:49]}  h5 {[%clk 0:02:22]} 16. Rd5 {[%clk 0:02:48]}  Bxc3+ {[%clk 0:01:45]} 17. bxc3 {[%clk 0:02:49]}  Qxc3+ {[%clk 0:01:45]} 18. Bd2 {[%clk 0:02:48]}  Qa1+ {[%clk 0:01:40]} 19. Ke2 {[%clk 0:02:49]}  Qf6 {[%clk 0:01:30]} 20. f3 {[%clk 0:02:00]}  Rad8 {[%clk 0:01:27]} 21. g4 {[%clk 0:01:48]}  Nd4+ {[%clk 0:01:21]} 22. Kf2 {[%clk 0:01:36]}  Be6 {[%clk 0:01:20]} 23. gxh5 {[%clk 0:00:42]}  Bxd5 {[%clk 0:01:05]} 24. hxg6 {[%clk 0:00:40]}  Qxg6 {[%clk 0:01:06]} 25. Bxd5 {[%clk 0:00:29]}  Rxd5 {[%clk 0:01:04]} 26. Rg1 {[%clk 0:00:28]}  Nf5 {[%clk 0:01:03]} 27. Qf4 {[%clk 0:00:20]}  e5 {[%clk 0:01:02]} 28. Qb4 {[%clk 0:00:18]}  Qb6+ {[%clk 0:00:43]} 29. Qxb6 {[%clk 0:00:18]}  Rxd2+ {[%clk 0:00:43]} 30. Ke1 {[%clk 0:00:17]}  axb6 {[%clk 0:00:44]} 31. Kxd2 {[%clk 0:00:18]}  Ra8 {[%clk 0:00:44]} 32. Kd3 {[%clk 0:00:15]}  Ra4 {[%clk 0:00:41]} 33. Ne6+ {[%clk 0:00:14]}  Kh7 {[%clk 0:00:40]} 34. Ng5+ {[%clk 0:00:12]}  Kg8 {[%clk 0:00:41]} 35. Ne6+ {[%clk 0:00:12]}  Kh8 {[%clk 0:00:41]} 36. Ng5 {[%clk 0:00:11]}  Rd4+ {[%clk 0:00:41]} 37. Kc3 {[%clk 0:00:11]}  Rd7 {[%clk 0:00:42]} 38. Re1 {[%clk 0:00:11]}  f6 {[%clk 0:00:41]} 39. Ne4 {[%clk 0:00:11]}  Kg7 {[%clk 0:00:41]} 40. Rb1 {[%clk 0:00:10]}  Ne3 {[%clk 0:00:40]} 41. Rb2 {[%clk 0:00:05]}  Nd1+ {[%clk 0:00:40]} 42. Kc2 {[%clk 0:00:06]}  Nxb2 {[%clk 0:00:40]} 43. Kxb2 {[%clk 0:00:06]}  Rd3 {[%clk 0:00:40]} 0-1


[Site "https://www.chess.com"]

[Event "Titled Tuesday Blitz August 08 Late 2023"]
[White "Womacka, Mathias"]
[Black "Terry, Renato"]
[WhiteFideId "4611390"]
[BlackFideId "3803457"]
[WhiteElo "2491"]
[BlackElo "2910"]
[Result "0-1"]
[Round "1"]
[TimeControl "180+1"]
[Date "2023.08.08"]
[WhiteClock "0:00:08"]
[BlackClock "0:00:36"]
[Board "23"]

1. e4 {[%clk 0:02:56]}  e6 {[%clk 0:02:58]} 2. d4 {[%clk 0:02:54]}  d5 {[%clk 0:02:58]} 3. Nd2 {[%clk 0:02:54]}  Be7 {[%clk 0:02:59]} 4. Ngf3 {[%clk 0:02:52]}  Nf6 {[%clk 0:02:59]} 5. e5 {[%clk 0:02:51]}  Nfd7 {[%clk 0:02:59]} 6. Bd3 {[%clk 0:02:50]}  c5 {[%clk 0:03:00]} 7. c3 {[%clk 0:02:50]}  Nc6 {[%clk 0:03:01]} 8. O-O {[%clk 0:02:49]}  g5 {[%clk 0:03:01]} 9. dxc5 {[%clk 0:02:48]}  Ndxe5 {[%clk 0:03:02]} 10. Nxe5 {[%clk 0:02:46]}  Nxe5 {[%clk 0:03:02]} 11. Nb3 {[%clk 0:02:45]}  Nxd3 {[%clk 0:03:02]} 12. Qxd3 {[%clk 0:02:45]}  f6 {[%clk 0:03:03]} 13. f4 {[%clk 0:02:40]}  gxf4 {[%clk 0:03:01]} 14. Bxf4 {[%clk 0:02:39]}  e5 {[%clk 0:03:01]} 15. Bh6 {[%clk 0:02:30]}  Be6 {[%clk 0:03:02]} 16. Bg7 {[%clk 0:02:25]}  Rg8 {[%clk 0:03:02]} 17. Qxh7 {[%clk 0:02:25]}  Qd7 {[%clk 0:02:43]} 18. Bxf6 {[%clk 0:02:12]}  Bxc5+ {[%clk 0:02:40]} 19. Nxc5 {[%clk 0:02:07]}  Qxh7 {[%clk 0:02:40]} 20. Nxe6 {[%clk 0:02:07]}  Kd7 {[%clk 0:02:11]} 21. Ng5 {[%clk 0:01:54]}  Qh6 {[%clk 0:01:58]} 22. Rae1 {[%clk 0:01:03]}  Rxg5 {[%clk 0:01:55]} 23. Bxg5 {[%clk 0:01:01]}  Qxg5 {[%clk 0:01:56]} 24. Rf7+ {[%clk 0:01:00]}  Ke6 {[%clk 0:01:47]} 25. Ref1 {[%clk 0:01:00]}  Rg8 {[%clk 0:01:38]} 26. g3 {[%clk 0:00:58]}  Rg7 {[%clk 0:01:25]} 27. Rf8 {[%clk 0:00:56]}  e4 {[%clk 0:01:23]} 28. Kg2 {[%clk 0:00:38]}  a6 {[%clk 0:01:15]} 29. a4 {[%clk 0:00:36]}  Rh7 {[%clk 0:01:01]} 30. Re8+ {[%clk 0:00:32]}  Kd7 {[%clk 0:01:00]} 31. Ref8 {[%clk 0:00:24]}  Qh5 {[%clk 0:01:00]} 32. h4 {[%clk 0:00:24]}  Rg7 {[%clk 0:00:56]} 33. R1f4 {[%clk 0:00:17]}  Qe2+ {[%clk 0:00:55]} 34. Kh3 {[%clk 0:00:18]}  Qe3 {[%clk 0:00:41]} 35. R8f7+ {[%clk 0:00:16]}  Rxf7 {[%clk 0:00:40]} 36. Rxf7+ {[%clk 0:00:17]}  Ke6 {[%clk 0:00:40]} 37. Rxb7 {[%clk 0:00:16]}  Qf3 {[%clk 0:00:38]} 38. Rb6+ {[%clk 0:00:13]}  Ke5 {[%clk 0:00:37]} 39. a5 {[%clk 0:00:08]}  Qf1+ {[%clk 0:00:36]} 40. Kg4 {[%clk 0:00:08]}  Qf5# {[%clk 0:00:36]} 0-1


[Site "https://www.chess.com"]

[Event "Titled Tuesday Blitz August 08 Late 2023"]
[White "Elsa167"]
[Black "Fontaine, Quentin"]
[BlackFideId "230804"]
[WhiteElo "2908"]
[BlackElo "2489"]
[Result "1-0"]
[Round "1"]
[TimeControl "180+1"]
[Date "2023.08.08"]
[WhiteClock "0:01:31"]
[BlackClock "0:00:12"]
[Board "24"]

1. d4 {[%clk 0:03:00]}  Nf6 {[%clk 0:02:58]} 2. c4 {[%clk 0:03:01]}  g6 {[%clk 0:02:58]} 3. Nc3 {[%clk 0:03:01]}  Bg7 {[%clk 0:02:59]} 4. e4 {[%clk 0:03:01]}  d6 {[%clk 0:02:58]} 5. h3 {[%clk 0:03:02]}  O-O {[%clk 0:02:57]} 6. Be3 {[%clk 0:03:03]}  c5 {[%clk 0:02:52]} 7. Nf3 {[%clk 0:03:02]}  Qa5 {[%clk 0:02:28]} 8. Bd3 {[%clk 0:03:02]}  cxd4 {[%clk 0:02:10]} 9. Nxd4 {[%clk 0:03:03]}  Nc6 {[%clk 0:02:10]} 10. Nb3 {[%clk 0:02:59]}  Qh5 {[%clk 0:02:05]} 11. Be2 {[%clk 0:02:52]}  Qe5 {[%clk 0:01:57]} 12. Bd3 {[%clk 0:02:14]}  Nb4 {[%clk 0:01:37]} 13. Bd4 {[%clk 0:02:06]}  Nxd3+ {[%clk 0:01:35]} 14. Qxd3 {[%clk 0:02:06]}  Qg5 {[%clk 0:01:33]} 15. g4 {[%clk 0:02:00]}  Be6 {[%clk 0:01:30]} 16. Be3 {[%clk 0:01:56]}  Qh4 {[%clk 0:01:25]} 17. O-O-O {[%clk 0:01:52]}  Rfc8 {[%clk 0:01:24]} 18. Nd2 {[%clk 0:01:53]}  Nd7 {[%clk 0:01:21]} 19. Nf3 {[%clk 0:01:51]}  Ne5 {[%clk 0:01:00]} 20. Nxh4 {[%clk 0:01:47]}  Nxd3+ {[%clk 0:00:59]} 21. Rxd3 {[%clk 0:01:48]}  Bxc4 {[%clk 0:00:58]} 22. Rd2 {[%clk 0:01:45]}  Bxa2 {[%clk 0:00:58]} 23. Bd4 {[%clk 0:01:45]}  Bh6 {[%clk 0:00:55]} 24. Be3 {[%clk 0:01:44]}  Bxe3 {[%clk 0:00:53]} 25. fxe3 {[%clk 0:01:45]}  Bb3 {[%clk 0:00:49]} 26. Nf3 {[%clk 0:01:44]}  Ba4 {[%clk 0:00:34]} 27. Kb1 {[%clk 0:01:42]}  Bc6 {[%clk 0:00:34]} 28. Nd5 {[%clk 0:01:42]}  Kf8 {[%clk 0:00:32]} 29. Rf1 {[%clk 0:01:41]}  e6 {[%clk 0:00:28]} 30. Nc3 {[%clk 0:01:39]}  Ke7 {[%clk 0:00:27]} 31. Ng5 {[%clk 0:01:38]}  f6 {[%clk 0:00:24]} 32. Nxh7 {[%clk 0:01:35]}  Rh8 {[%clk 0:00:19]} 33. Nxf6 {[%clk 0:01:35]}  Rxh3 {[%clk 0:00:19]} 34. g5 {[%clk 0:01:34]}  Rxe3 {[%clk 0:00:19]} 35. Rh1 {[%clk 0:01:34]}  Rf8 {[%clk 0:00:18]} 36. Rh7+ {[%clk 0:01:31]}  Rf7 {[%clk 0:00:18]} 37. Rdh2 {[%clk 0:01:31]}  Rg3 {[%clk 0:00:16]} 38. Rxf7+ {[%clk 0:01:31]}  Kxf7 {[%clk 0:00:16]} 39. Rh7+ {[%clk 0:01:31]}  Kf8 {[%clk 0:00:16]} 40. Rc7 {[%clk 0:01:30]}  Rxg5 {[%clk 0:00:12]} 41. Nh7+ {[%clk 0:01:31]} 1-0


[Site "https://www.chess.com"]

[Event "Titled Tuesday Blitz August 08 Late 2023"]
[White "Sebag, Marie"]
[Black "Kovalev, Vladislav"]
[WhiteFideId "617822"]
[BlackFideId "13504398"]
[WhiteElo "2489"]
[BlackElo "2903"]
[Result "0-1"]
[Round "1"]
[TimeControl "180+1"]
[Date "2023.08.08"]
[WhiteClock "0:00:28"]
[BlackClock "0:00:46"]
[Board "25"]

1. d4 {[%clk 0:03:00]}  Nf6 {[%clk 0:03:00]} 2. Nf3 {[%clk 0:02:59]}  e6 {[%clk 0:03:00]} 3. Bf4 {[%clk 0:02:59]}  d5 {[%clk 0:02:59]} 4. e3 {[%clk 0:02:59]}  c5 {[%clk 0:03:00]} 5. c3 {[%clk 0:02:58]}  Bd6 {[%clk 0:03:00]} 6. Ne5 {[%clk 0:02:57]}  Qc7 {[%clk 0:02:55]} 7. Nd2 {[%clk 0:02:57]}  O-O {[%clk 0:02:53]} 8. Bd3 {[%clk 0:02:57]}  Nc6 {[%clk 0:02:46]} 9. Ndf3 {[%clk 0:02:54]}  Ne7 {[%clk 0:02:37]} 10. Qc2 {[%clk 0:02:42]}  b6 {[%clk 0:02:35]} 11. g4 {[%clk 0:02:41]}  c4 {[%clk 0:02:34]} 12. Be2 {[%clk 0:02:41]}  Ne4 {[%clk 0:02:34]} 13. Nd2 {[%clk 0:02:28]}  Nxd2 {[%clk 0:02:27]} 14. Qxd2 {[%clk 0:02:27]}  f6 {[%clk 0:02:23]} 15. Nf3 {[%clk 0:02:27]}  e5 {[%clk 0:02:23]} 16. Bg3 {[%clk 0:02:22]}  Bxg4 {[%clk 0:02:16]} 17. Rg1 {[%clk 0:02:17]}  Bxf3 {[%clk 0:02:12]} 18. Bxf3 {[%clk 0:02:17]}  e4 {[%clk 0:02:13]} 19. Be2 {[%clk 0:02:16]}  f5 {[%clk 0:02:12]} 20. O-O-O {[%clk 0:02:15]}  f4 {[%clk 0:02:11]} 21. exf4 {[%clk 0:02:14]}  Bxf4 {[%clk 0:02:12]} 22. Bxf4 {[%clk 0:02:14]}  Qxf4 {[%clk 0:02:13]} 23. Rg2 {[%clk 0:02:11]}  Qxd2+ {[%clk 0:02:10]} 24. Kxd2 {[%clk 0:02:10]}  Rf4 {[%clk 0:02:08]} 25. Rdg1 {[%clk 0:02:10]}  g6 {[%clk 0:02:08]} 26. Bg4 {[%clk 0:02:07]}  Raf8 {[%clk 0:02:06]} 27. Ke2 {[%clk 0:02:06]}  Kg7 {[%clk 0:02:04]} 28. b3 {[%clk 0:02:00]}  cxb3 {[%clk 0:01:55]} 29. axb3 {[%clk 0:02:00]}  a5 {[%clk 0:01:56]} 30. Bd7 {[%clk 0:01:54]}  Rf3 {[%clk 0:01:51]} 31. Rc1 {[%clk 0:01:51]}  Nf5 {[%clk 0:01:42]} 32. Bxf5 {[%clk 0:01:46]}  R8xf5 {[%clk 0:01:43]} 33. Rc2 {[%clk 0:01:36]}  Kf6 {[%clk 0:01:29]} 34. Ke1 {[%clk 0:01:36]}  Ke6 {[%clk 0:01:29]} 35. Ke2 {[%clk 0:01:35]}  Kd6 {[%clk 0:01:30]} 36. Kd1 {[%clk 0:01:33]}  Kc6 {[%clk 0:01:20]} 37. Kc1 {[%clk 0:01:32]}  b5 {[%clk 0:01:17]} 38. Kb2 {[%clk 0:01:32]}  Rd3 {[%clk 0:01:13]} 39. Rg3 {[%clk 0:01:23]}  Rdf3 {[%clk 0:01:09]} 40. Rg2 {[%clk 0:01:22]}  g5 {[%clk 0:01:09]} 41. Re2 {[%clk 0:01:16]}  h6 {[%clk 0:01:09]} 42. Rc2 {[%clk 0:01:15]}  Kb6 {[%clk 0:01:09]} 43. Re2 {[%clk 0:01:09]}  h5 {[%clk 0:01:09]} 44. c4 {[%clk 0:01:05]}  Rd3 {[%clk 0:00:44]} 45. cxd5 {[%clk 0:00:54]}  Rxd4 {[%clk 0:00:44]} 46. h4 {[%clk 0:00:44]}  g4 {[%clk 0:00:44]} 47. Rg3 {[%clk 0:00:35]}  Rfxd5 {[%clk 0:00:44]} 48. Rge3 {[%clk 0:00:35]}  Rd2+ {[%clk 0:00:44]} 49. Kc1 {[%clk 0:00:32]}  Rxe2 {[%clk 0:00:44]} 50. Rxe2 {[%clk 0:00:32]}  Rd4 {[%clk 0:00:45]} 51. Kc2 {[%clk 0:00:32]}  Kc5 {[%clk 0:00:45]} 52. Kc3 {[%clk 0:00:31]}  Rd3+ {[%clk 0:00:46]} 53. Kc2 {[%clk 0:00:28]}  Kd4 {[%clk 0:00:46]} 0-1


[Site "https://www.chess.com"]